fUSD/lending_fUSD_20250818
["ID","MTS","AMOUNT","RATE_DAILY","PERIOD"]
[380049197,1755504638203,-242.5585184,0.00011274,2]
[380049198,1755504638212,-500.0,0.00011274,2]
[380049199,1755504638222,-254.64789077,0.00011274,2]
[380049200,1755504638233,-331.88,0.00011279,2]
[380049201,1755504638243,-500.0,0.00011323,2]
[380049202,1755504638253,-287.06,0.00011326,2]
[380049203,1755504638263,-165.94,0.00011326,2]
[380049204,1755504638272,-331.82,0.00011326,2]
[380049205,1755504638282,-408.15,0.00011326,2]
[380049206,1755504638292,-500.0,0.00011378,2]
[380049207,1755504638302,-500.0,0.00011433,2]
[380049208,1755504638312,-834.4491242,0.0001145,2]
[380049209,1755504638321,-160.0,0.00011464,2]
[380049210,1755504638332,-277.35679052,0.00011464,2]
[380049211,1755504638343,-151.0,0.00011464,2]
[380049212,1755504638355,-254.70039417,0.00011464,2]
[380049213,1755504638364,-155.64884187,0.00011464,2]
[380049214,1755504638374,-4923.41751996,0.00011485,2]
[380049215,1755504638384,-500.0,0.00011488,2]
[380049216,1755504638393,-158.18,0.000115,2]
[380049217,1755504638403,-2751.0,0.00011507,2]
[380049218,1755504638413,-1000.0,0.00011521,2]
[380049219,1755504638423,-1000.0,0.00011521,2]
[380049220,1755504638432,-1000.0,0.00011521,2]
[380049221,1755504638442,-1000.0,0.00011521,2]
[380049222,1755504638451,-1000.0,0.00011521,2]
[380049223,1755504638461,-1000.0,0.00011521,2]
[380049224,1755504638470,-700.7024043,0.00011521,2]
[380049225,1755504638479,-1000.0,0.00011521,2]
[380049226,1755504638489,-1000.0,0.00011521,2]
[380049227,1755504638498,-841.93999063,0.00011521,2]
[380049228,1755504638508,-1000.0,0.00011521,2]
[380049229,1755504638517,-1000.0,0.00011521,2]
[380049230,1755504638527,-1000.0,0.00011521,2]
[380049231,1755504638536,-1000.0,0.00011521,2]
[380049232,1755504638547,-1000.0,0.00011521,2]
[380049233,1755504638557,-1000.0,0.00011521,2]
[380049234,1755504638567,-1000.0,0.00011521,2]
[380049235,1755504638577,-151.0,0.00011541,2]
[380049236,1755504638586,-500.0,0.00011543,2]
[380049237,1755504638596,-500.0,0.00011548,2]
[380049238,1755504638606,-620.08162908,0.00011548,2]
[380049239,1755504638617,-3811.0,0.00011799,2]
[380049240,1755504638627,-1656.0,0.00011813,2]
[380049241,1755504638637,-600.789,0.00011813,2]
[380049242,1755504638646,-500.0,0.00011822,2]
[380049243,1755504638656,-664.81,0.00011843,2]
[380049244,1755504638666,-1680.0,0.00011938,2]
[380049245,1755504638676,-420.0,0.00011978,2]
[380049246,1755504638686,-1580.0,0.00012,2]
[380049247,1755504638696,-200.0,0.00012,2]
[380049248,1755504638707,-151.0,0.00012012,2]
[380049249,1755504638717,-250.0,0.00012013,2]
[380049250,1755504638726,-251.0,0.00012013,2]
[380049251,1755504638736,-204.0,0.00012013,2]
[380049252,1755504638745,-200.0,0.00012013,2]
[380049253,1755504638754,-200.0,0.00012013,2]
[380049254,1755504638763,-178.482,0.00012013,2]
[380049255,1755504638772,-195.589,0.00012013,2]
[380049256,1755504638781,-203.243,0.00012013,2]
[380049257,1755504638790,-250.0,0.00012013,2]
[380049258,1755504638800,-201.232,0.00012013,2]
[380049259,1755504638809,-250.0,0.00012013,2]
[380049260,1755504638819,-296.394,0.00012013,2]
[380049261,1755504638828,-245.888,0.00012013,2]
[380049262,1755504638838,-186.31,0.00012013,2]
[380049263,1755504638847,-159.915,0.00012013,2]
[380049264,1755504638856,-206.999,0.00012013,2]
[380049265,1755504638865,-204.955,0.00012013,2]
[380049266,1755504638875,-250.0,0.00012013,2]
[380049267,1755504638884,-154.0,0.00012013,2]
[380049268,1755504638893,-209.961,0.00012013,2]
[380049269,1755504638904,-157.387,0.00012013,2]
[380049270,1755504638913,-2029.0,0.00012013,2]
[380049271,1755504638923,-1255.476,0.00012013,2]
[380049272,1755504638932,-991.88,0.00012013,2]
[380049273,1755504638943,-1323.375,0.00012013,2]
[380049274,1755504638952,-1173.036,0.00012013,2]
[380049275,1755504638962,-894.807,0.00012013,2]
[380049276,1755504638974,-2235.0,0.00012013,2]
[380049277,1755504638984,-4151.0,0.00012013,2]
[380049278,1755504638993,-717.0,0.00012013,2]
[380049279,1755504639003,-6090.0,0.00012013,2]
[380049280,1755504639012,-843.78711038,0.00012021,2]
[380049281,1755504639022,-255.0,0.00012044,2]
[380049282,1755504639033,-1500.0,0.00012068,2]
[380049283,1755504639044,-1500.0,0.00012068,2]
[380049284,1755504639053,-1500.0,0.00012068,2]
[380049285,1755504639064,-533.613245,0.00012068,2]
[380049286,1755504639074,-1458.81343577,0.00012068,2]
[380049287,1755504639084,-500.0,0.00012068,2]
[380049288,1755504639093,-1506.03200363,0.00012068,2]
[380049289,1755504639104,-1500.0,0.00012068,2]
[380049290,1755504639114,-347.10055115,0.00012068,2]
[380049291,1755504639123,-501.86637151,0.00012068,2]
[380049292,1755504639134,-1500.0,0.00012068,2]
[380049293,1755504639145,-1500.0,0.00012068,2]
[380049294,1755504639156,-198.68158883,0.00012068,2]
[380049295,1755504639172,-629.90530145,0.00012068,2]
[380049296,1755504639182,-1500.0,0.00012068,2]
[380049297,1755504639192,-300.0,0.0001207,2]
[380049298,1755504639203,-151.0,0.00012089,2]
[380049299,1755504639214,-500.0,0.00012096,2]
[380049300,1755504639225,-150.0,0.0001218,2]
[380049301,1755504639236,-470.0,0.00012301,2]
[380049302,1755504639247,-378.59,0.00012338,2]
[380049303,1755504639258,-500.0,0.0001237,2]
[380049304,1755504639268,-1000.0,0.00012497,2]
[380049305,1755504639278,-481.7134784,0.00012529,2]
[380049306,1755504639288,-255.0,0.00012529,2]
[380049307,1755504639298,-255.0,0.00012529,2]
[380049308,1755504639307,-255.0,0.00012529,2]
[380049309,1755504639317,-358.99811627,0.00012529,2]
[380049310,1755504639327,-151.0,0.0001256,2]
[380049311,1755504639337,-2041.4358324,0.00012616,2]
[380049312,1755504639347,-2000.0,0.00012616,2]
[380049313,1755504639357,-938.37625615,0.00012616,2]
[380049314,1755504639367,-2003.43822729,0.00012616,2]
[380049315,1755504639376,-2000.0,0.00012616,2]
[380049316,1755504639386,-2000.0,0.00012616,2]
[380049317,1755504639397,-2000.0,0.00012616,2]
[380049319,1755504639408,-151.0,0.00012637,2]
[380049320,1755504639419,-500.0,0.00012644,2]
[380049321,1755504639430,-21105.69,0.000127,2]
[380049322,1755504639440,-1800.0,0.000128,2]
[380049323,1755504639450,-1080.0,0.000128,2]
[380049324,1755504639459,-436864.39,0.000128,2]
[380049325,1755504639470,-151.0,0.000128,2]
[380049326,1755504639479,-151.0,0.000128,2]
[380049327,1755504639490,-151.0,0.000128,2]
[380049328,1755504639499,-235.888947,0.000128,2]
[380049329,1755504639510,-235.888947,0.000128,2]
[380049330,1755504639519,-211.594877,0.000128,2]
[380049331,1755504639529,-211.594877,0.000128,2]
[380049332,1755504639542,-151.0,0.000128,2]
[380049333,1755504639553,-151.0,0.000128,2]
[380049334,1755504639593,-151.0,0.000128,2]
[380049335,1755504639624,-157.444717,0.000128,2]
[380049336,1755504639667,-157.444717,0.000128,2]
[380049337,1755504639682,-151.0,0.000128,2]
[380049338,1755504639692,-156.506766,0.000128,2]
[380049339,1755504639702,-151.0,0.000128,2]
[380049340,1755504639711,-156.506766,0.000128,2]
[380049341,1755504639721,-151.0,0.000128,2]
[380049342,1755504639730,-151.0,0.000128,2]
[380049343,1755504639740,-151.0,0.000128,2]
[380049344,1755504639749,-207.757898,0.000128,2]
[380049345,1755504639759,-151.0,0.000128,2]
[380049346,1755504639768,-151.0,0.000128,2]
[380049347,1755504639778,-151.0,0.000128,2]
[380049348,1755504639787,-239.12664,0.000128,2]
[380049349,1755504639797,-151.0,0.000128,2]
[380049350,1755504639806,-151.0,0.000128,2]
[380049351,1755504639816,-239.12664,0.000128,2]
[380049352,1755504639825,-204.668964,0.000128,2]
[380049353,1755504639835,-151.0,0.000128,2]
[380049354,1755504639844,-204.668964,0.000128,2]
[380049355,1755504639854,-272.450288,0.000128,2]
[380049356,1755504639863,-272.450288,0.000128,2]
[380049357,1755504639872,-151.038899,0.000128,2]
[380049358,1755504639882,-151.0,0.000128,2]
[380049359,1755504639891,-272.134876,0.000128,2]
[380049360,1755504639901,-272.134876,0.000128,2]
[380049361,1755504639911,-151.0,0.000128,2]
[380049362,1755504639920,-245.821452,0.000128,2]
[380049363,1755504639930,-180.976248,0.000128,2]
[380049364,1755504639940,-245.821452,0.000128,2]
[380049365,1755504639950,-180.976248,0.000128,2]
[380049366,1755504639959,-344.732883,0.000128,2]
[380049367,1755504639968,-344.732883,0.000128,2]
[380049368,1755504639978,-151.0,0.000128,2]
[380049369,1755504639987,-151.0,0.000128,2]
[380049370,1755504639997,-151.0,0.000128,2]
[380049371,1755504640007,-154.13738,0.000128,2]
[380049372,1755504640017,-281.653092,0.000128,2]
[380049373,1755504640027,-281.653092,0.000128,2]
[380049374,1755504640038,-232.305114,0.000128,2]
[380049375,1755504640048,-232.305114,0.000128,2]
[380049376,1755504640058,-151.0,0.000128,2]
[380049377,1755504640068,-151.0,0.000128,2]
[380049378,1755504640077,-785.916864,0.000128,2]
[380049379,1755504640087,-785.916864,0.000128,2]
[380049380,1755504640096,-151.0,0.000128,2]
[380049381,1755504640106,-151.0,0.000128,2]
[380049382,1755504640116,-159.404951,0.000128,2]
[380049383,1755504640126,-199.957244,0.000128,2]
[380049384,1755504640136,-159.404951,0.000128,2]
[380049385,1755504640146,-199.957244,0.000128,2]
[380049386,1755504640157,-180.506024,0.000128,2]
[380049387,1755504640169,-180.506024,0.000128,2]
[380049388,1755504640179,-299.362976,0.000128,2]
[380049389,1755504640189,-151.0,0.000128,2]
[380049390,1755504640199,-299.362976,0.000128,2]
[380049391,1755504640208,-151.0,0.000128,2]
[380049392,1755504640218,-1918.865573,0.000128,2]
[380049393,1755504640229,-522.340523,0.000128,2]
[380049394,1755504640668,-1918.865573,0.000128,2]
[380049395,1755504640688,-151.0,0.000128,2]
[380049396,1755504640698,-522.340523,0.000128,2]
[380049397,1755504640707,-222.512373,0.000128,2]
[380049398,1755504640719,-222.512373,0.000128,2]
[380049399,1755504640730,-209.113427,0.000128,2]
[380049400,1755504640739,-151.0,0.000128,2]
[380049401,1755504640749,-151.0,0.000128,2]
[380049402,1755504640759,-845.149097,0.000128,2]
[380049403,1755504640768,-257.599784,0.000128,2]
[380049404,1755504640777,-2397.698286,0.000128,2]
[380049405,1755504640787,-845.149097,0.000128,2]
[380049406,1755504640796,-257.599784,0.000128,2]
[380049407,1755504640805,-151.0,0.000128,2]
[380049408,1755504640815,-2397.698286,0.000128,2]
[380049409,1755504640824,-192.390189,0.000128,2]
[380049410,1755504640834,-721.881884,0.000128,2]
[380049411,1755504640843,-192.390189,0.000128,2]
[380049412,1755504640852,-721.881884,0.000128,2]
[380049413,1755504640862,-151.0,0.000128,2]
[380049414,1755504640872,-291.576258,0.000128,2]
[380049415,1755504640881,-291.576258,0.000128,2]
[380049416,1755504640890,-321.247602,0.000128,2]
[380049417,1755504640900,-321.247602,0.000128,2]
[380049418,1755504640909,-151.0,0.000128,2]
[380049419,1755504640919,-151.0,0.000128,2]
[380049420,1755504640928,-151.0,0.000128,2]
[380049421,1755504640939,-151.0,0.000128,2]
[380049422,1755504640949,-152.853835,0.000128,2]
[380049423,1755504640961,-152.853835,0.000128,2]
[380049424,1755504640972,-151.0,0.000128,2]
[380049425,1755504640981,-151.0,0.000128,2]
[380049426,1755504640990,-151.0,0.000128,2]
[380049427,1755504641000,-151.0,0.000128,2]
[380049428,1755504641010,-1360.054722,0.000128,2]
[380049429,1755504641020,-1360.054722,0.000128,2]
[380049430,1755504641030,-151.0,0.000128,2]
[380049431,1755504641039,-151.0,0.000128,2]
[380049432,1755504641050,-151.0,0.000128,2]
[380049433,1755504641059,-189.766744,0.000128,2]
[380049434,1755504641069,-160.34854,0.000128,2]
[380049435,1755504641079,-189.766744,0.000128,2]
[380049436,1755504641089,-193.133747,0.000128,2]
[380049437,1755504641099,-193.133747,0.000128,2]
[380049438,1755504641108,-151.0,0.000128,2]
[380049439,1755504641119,-151.0,0.000128,2]
[380049440,1755504641129,-839.072728,0.000128,2]
[380049441,1755504641138,-151.0,0.000128,2]
[380049442,1755504641147,-839.072728,0.000128,2]
[380049443,1755504641158,-151.0,0.000128,2]
[380049444,1755504641170,-952.911512,0.000128,2]
[380049445,1755504641180,-952.911512,0.000128,2]
[380049446,1755504641190,-242.644988,0.000128,2]
[380049447,1755504641199,-151.0,0.000128,2]
[380049448,1755504641209,-242.644988,0.000128,2]
[380049449,1755504641219,-152.249389,0.000128,2]
[380049450,1755504641230,-190.015805,0.000128,2]
[380049451,1755504641240,-152.249389,0.000128,2]
[380049452,1755504641252,-190.015805,0.000128,2]
[380049453,1755504641262,-151.0,0.000128,2]
[380049454,1755504641273,-151.0,0.000128,2]
[380049455,1755504641282,-151.0,0.000128,2]
[380049456,1755504641292,-265.909468,0.000128,2]
[380049457,1755504641301,-298.154128,0.000128,2]
[380049458,1755504641310,-151.0,0.000128,2]
[380049459,1755504641320,-298.154128,0.000128,2]
[380049460,1755504641329,-1169.316362,0.000128,2]
[380049461,1755504641340,-151.0,0.000128,2]
[380049462,1755504641352,-1169.316362,0.000128,2]
[380049463,1755504641363,-265.909468,0.000128,2]
[380049464,1755504641373,-565.074518,0.000128,2]
[380049465,1755504641382,-151.0,0.000128,2]
[380049466,1755504641391,-565.074518,0.000128,2]
[380049467,1755504641402,-151.0,0.000128,2]
[380049468,1755504641411,-151.0,0.000128,2]
[380049469,1755504641421,-151.0,0.000128,2]
[380049470,1755504641431,-151.0,0.000128,2]
[380049471,1755504641441,-151.0,0.000128,2]
[380049472,1755504641451,-185.856921,0.000128,2]
[380049473,1755504641460,-251.655641,0.000128,2]
[380049474,1755504641469,-151.0,0.000128,2]
[380049475,1755504641479,-697.610665,0.000128,2]
[380049476,1755504641488,-151.0,0.000128,2]
[380049477,1755504641498,-185.856921,0.000128,2]
[380049478,1755504641508,-697.610665,0.000128,2]
[380049479,1755504641517,-151.0,0.000128,2]
[380049480,1755504641527,-2378.636325,0.000128,2]
[380049481,1755504641537,-2378.636325,0.000128,2]
[380049482,1755504641546,-481.767433,0.000128,2]
[380049483,1755504641556,-156.219726,0.000128,2]
[380049484,1755504641567,-2060.697847,0.000128,2]
[380049485,1755504641578,-481.767433,0.000128,2]
[380049486,1755504641587,-2060.697847,0.000128,2]
[380049487,1755504641597,-151.0,0.000128,2]
[380049488,1755504641607,-151.0,0.000128,2]
[380049489,1755504641616,-234.909011,0.000128,2]
[380049490,1755504641626,-161.212956,0.000128,2]
[380049491,1755504641637,-177.786536,0.000128,2]
[380049492,1755504641647,-177.786536,0.000128,2]
[380049493,1755504641656,-151.0,0.000128,2]
[380049494,1755504641666,-273.840896,0.000128,2]
[380049495,1755504641676,-151.0,0.000128,2]
[380049496,1755504641686,-924.125389,0.000128,2]
[380049497,1755504641696,-151.0,0.000128,2]
[380049498,1755504641706,-151.0,0.000128,2]
[380049499,1755504641715,-273.840896,0.000128,2]
[380049500,1755504641724,-924.125389,0.000128,2]
[380049501,1755504641734,-151.0,0.000128,2]
[380049502,1755504641744,-151.0,0.000128,2]
[380049503,1755504641753,-170.50724,0.000128,2]
[380049504,1755504641763,-1000.0,0.000128,2]
[380049505,1755504641772,-151.0,0.000128,2]
[380049506,1755504641781,-169.029401,0.000128,2]
[380049507,1755504641791,-151.0,0.000128,2]
[380049508,1755504641800,-151.0,0.000128,2]
[380049509,1755504641809,-151.0,0.000128,2]
[380049510,1755504641819,-241.156177,0.000128,2]
[380049511,1755504641828,-151.0,0.000128,2]
[380049512,1755504641838,-241.156177,0.000128,2]
[380049513,1755504641847,-151.0,0.000128,2]
[380049514,1755504641856,-151.0,0.000128,2]
[380049515,1755504641866,-151.0,0.000128,2]
[380049516,1755504641875,-151.0,0.000128,2]
[380049517,1755504641884,-151.0,0.000128,2]
[380049518,1755504641894,-151.0,0.000128,2]
[380049519,1755504641903,-239.165198,0.000128,2]
[380049520,1755504641913,-792.361127,0.000128,2]
[380049521,1755504641922,-151.0,0.000128,2]
[380049522,1755504641931,-151.0,0.000128,2]
[380049523,1755504641943,-792.361127,0.000128,2]
[380049524,1755504641952,-188.171543,0.000128,2]
[380049525,1755504641962,-589.080839,0.000128,2]
[380049526,1755504641972,-188.171543,0.000128,2]
[380049527,1755504641981,-589.080839,0.000128,2]
[380049528,1755504641990,-151.0,0.000128,2]
[380049529,1755504642000,-490.826035,0.000128,2]
[380049530,1755504642009,-574.765393,0.000128,2]
[380049531,1755504642019,-984.013095,0.000128,2]
[380049532,1755504642028,-490.826035,0.000128,2]
[380049533,1755504642038,-197.060033,0.000128,2]
[380049534,1755504642048,-387.647805,0.000128,2]
[380049535,1755504642057,-574.765393,0.000128,2]
[380049536,1755504642066,-984.013095,0.000128,2]
[380049537,1755504642076,-401.793276,0.000128,2]
[380049538,1755504642086,-387.647805,0.000128,2]
[380049539,1755504642096,-401.793276,0.000128,2]
[380049540,1755504642105,-151.0,0.000128,2]
[380049541,1755504642115,-151.0,0.000128,2]
[380049542,1755504642124,-924.551097,0.000128,2]
[380049543,1755504642134,-1681.446527,0.000128,2]
[380049544,1755504642143,-183.441738,0.000128,2]
[380049545,1755504642154,-924.551097,0.000128,2]
[380049546,1755504642166,-1681.446527,0.000128,2]
[380049547,1755504642175,-209.684729,0.000128,2]
[380049548,1755504642185,-209.684729,0.000128,2]
[380049549,1755504642197,-298.937773,0.000128,2]
[380049550,1755504642207,-298.937773,0.000128,2]
[380049551,1755504642216,-160.0,0.00012833,2]
[380049552,1755504642226,-287.61899177,0.00012833,2]
[380049553,1755504642237,-2706.0,0.00012894,2]
[380049554,1755504642246,-151.0,0.00012894,2]
[380049555,1755504642256,-151.0,0.00012894,2]
[380049556,1755504642265,-151.0,0.00012894,2]
[380049557,1755504642275,-299.362976,0.00012898,2]
[380049558,1755504642285,-299.362976,0.00012898,2]
[380049559,1755504642295,-151.0,0.00012898,2]
[380049560,1755504642304,-1918.865573,0.00012898,2]
[380049561,1755504642314,-522.340523,0.00012898,2]
[380049562,1755504642324,-1918.865573,0.00012898,2]
[380049563,1755504642334,-151.0,0.00012898,2]
[380049564,1755504642344,-522.340523,0.00012898,2]
[380049565,1755504642353,-222.512373,0.00012898,2]
[380049566,1755504642362,-222.512373,0.00012898,2]
[380049567,1755504642372,-151.0,0.00012898,2]
[380049568,1755504642382,-151.0,0.00012898,2]
[380049569,1755504642391,-2706.0,0.00012899,2]
[380049570,1755504642401,-500.0,0.00012918,2]
[380049571,1755504642411,-187.59,0.00012946,2]
[380049573,1755504642421,-2706.0,0.00012964,2]
[380049575,1755504642430,-2706.0,0.00012977,2]
[380049576,1755504642442,-1300.0,0.00013,2]
[380049577,1755504642451,-1689.66,0.00013,2]
[380049579,1755504642461,-556.58743739,0.00013,2]
[380049581,1755504642470,-151.0,0.00013098,2]
[380049582,1755504642479,-281.653092,0.00013098,2]
[380049584,1755504642489,-281.653092,0.00013098,2]
[380049586,1755504642498,-232.305114,0.00013098,2]
[380049588,1755504642508,-232.305114,0.00013098,2]
[380049591,1755504642518,-151.0,0.00013098,2]
[380049593,1755504642528,-151.0,0.00013098,2]
[380049596,1755504642537,-785.916864,0.00013098,2]
[380049598,1755504642547,-785.916864,0.00013098,2]
[380049600,1755504642557,-151.0,0.00013098,2]
[380049601,1755504642566,-151.0,0.00013098,2]
[380049602,1755504642576,-159.404951,0.00013098,2]
[380049603,1755504642586,-199.957244,0.00013098,2]
[380049604,1755504642595,-159.404951,0.00013098,2]
[380049605,1755504642605,-199.957244,0.00013098,2]
[380049606,1755504642615,-180.506024,0.00013098,2]
[380049607,1755504642624,-180.506024,0.00013098,2]
[380049608,1755504642634,-278.188239,0.00013098,2]
[380049609,1755504642644,-151.0,0.00013098,2]
[380049610,1755504642653,-185.856921,0.00013098,2]
[380049611,1755504642663,-151.0,0.00013098,2]
[380049612,1755504642673,-185.856921,0.00013098,2]
[380049613,1755504642682,-151.0,0.00013098,2]
[380049614,1755504642692,-2378.636325,0.00013098,2]
[380049615,1755504642702,-2378.636325,0.00013098,2]
[380049616,1755504642711,-481.767433,0.00013098,2]
[380049617,1755504642721,-2060.697847,0.00013098,2]
[380049618,1755504642730,-481.767433,0.00013098,2]
[380049619,1755504642740,-2060.697847,0.00013098,2]
[380049620,1755504642749,-151.0,0.00013098,2]
[380049621,1755504642758,-151.0,0.00013098,2]
[380049622,1755504642768,-177.786536,0.00013098,2]
[380049623,1755504642778,-177.786536,0.00013098,2]
[380049624,1755504642788,-153.972054,0.00013098,2]
[380049625,1755504642798,-273.840896,0.00013098,2]
[380049626,1755504642808,-151.0,0.00013098,2]
[380049627,1755504642818,-924.125389,0.00013098,2]
[380049628,1755504642827,-151.0,0.00013098,2]
[380049629,1755504642838,-151.0,0.00013098,2]
[380049630,1755504642848,-273.840896,0.00013098,2]
[380049631,1755504642859,-924.125389,0.00013098,2]
[380049632,1755504642869,-151.0,0.00013098,2]
[380049633,1755504642879,-151.0,0.00013098,2]
[380049634,1755504642889,-151.0,0.00013098,2]
[380049635,1755504642899,-151.0,0.00013098,2]
[380049636,1755504642908,-151.0,0.00013098,2]
[380049637,1755504642918,-350.565916,0.00013098,2]
[380049638,1755504642928,-151.0,0.00013098,2]
[380049639,1755504642939,-151.0,0.00013098,2]
[380049640,1755504642948,-151.0,0.00013098,2]
[380049641,1755504642958,-350.565916,0.00013098,2]
[380049642,1755504642967,-274.601293,0.00013098,2]
[380049643,1755504642976,-274.601293,0.00013098,2]
[380049644,1755504642986,-559.403226,0.00013098,2]
[380049645,1755504642995,-1029.030682,0.00013098,2]
[380049646,1755504643005,-559.403226,0.00013098,2]
[380049647,1755504643014,-151.0,0.00013098,2]
[380049648,1755504643024,-1029.030682,0.00013098,2]
[380049649,1755504643033,-158.877478,0.00013098,2]
[380049650,1755504643042,-731.583019,0.00013098,2]
[380049651,1755504643052,-158.877478,0.00013098,2]
[380049652,1755504643062,-440.10798,0.00013098,2]
[380049653,1755504643071,-731.583019,0.00013098,2]
[380049655,1755504643081,-440.10798,0.00013098,2]
[380049657,1755504643090,-151.0,0.00013098,2]
[380049659,1755504643099,-172.641406,0.00013098,2]
[380049661,1755504643109,-172.641406,0.00013098,2]
[380049673,1755504643227,-151.0,0.00013098,2]
[380049674,1755504643236,-151.0,0.00013098,2]
[380049675,1755504643248,-151.0,0.00013098,2]
[380049676,1755504643258,-151.0,0.00013098,2]
[380049677,1755504643268,-1000.0,0.000131,2]
[380049678,1755504643278,-151.0,0.00013108,2]
[380049679,1755504643287,-5097.21449849,0.00013127,2]
[380049680,1755504643296,-2706.0,0.00013127,2]
[380049681,1755504643306,-2351.0,0.00013132,2]
[380049682,1755504643315,-154.05,0.00013148,2]
[380049683,1755504643325,-664.81,0.00013159,2]
[380049684,1755504643335,-587.0,0.00013164,2]
[380049685,1755504643345,-2500.0,0.00013164,2]
[380049686,1755504643354,-2500.0,0.00013164,2]
[380049687,1755504643365,-2500.0,0.00013164,2]
[380049688,1755504643375,-2500.0,0.00013164,2]
[380049689,1755504643384,-251.24619305,0.00013185,2]
[380049690,1755504643393,-433.0,0.00013188,2]
[380049691,1755504643402,-1047.81838246,0.00013191,2]
[380049692,1755504643412,-500.0,0.00013192,2]
[380049693,1755504643421,-1000.0,0.000132,2]
[380049694,1755504643431,-2706.0,0.00013221,2]
[380049695,1755504643441,-271.0,0.00013253,2]
[380049696,1755504643450,-2706.0,0.00013271,2]
[380049697,1755504643459,-271.0,0.00013287,2]
[380049698,1755504643469,-151.0,0.00013298,2]
[380049699,1755504643479,-151.0,0.00013298,2]
[380049700,1755504643488,-245.821452,0.00013298,2]
[380049701,1755504643498,-245.821452,0.00013298,2]
[380049702,1755504643507,-180.976248,0.00013298,2]
[380049703,1755504643516,-180.976248,0.00013298,2]
[380049704,1755504643526,-344.732883,0.00013298,2]
[380049705,1755504643535,-344.732883,0.00013298,2]
[380049706,1755504643545,-151.0,0.00013298,2]
[380049707,1755504643554,-151.0,0.00013298,2]
[380049708,1755504643564,-151.0,0.00013298,2]
[380049709,1755504643574,-151.0,0.00013298,2]
[380049710,1755504643583,-151.0,0.00013298,2]
[380049711,1755504643592,-265.909468,0.00013298,2]
[380049712,1755504643603,-298.154128,0.00013298,2]
[380049713,1755504643612,-151.0,0.00013298,2]
[380049714,1755504643622,-298.154128,0.00013298,2]
[380049715,1755504643631,-1169.316362,0.00013298,2]
[380049716,1755504643641,-1169.316362,0.00013298,2]
[380049717,1755504643650,-265.909468,0.00013298,2]
[380049718,1755504643660,-565.074518,0.00013298,2]
[380049719,1755504643669,-151.0,0.00013298,2]
[380049720,1755504643679,-565.074518,0.00013298,2]
[380049721,1755504643689,-151.0,0.00013298,2]
[380049722,1755504643699,-249.364708,0.00013298,2]
[380049723,1755504643708,-151.0,0.00013298,2]
[380049724,1755504643717,-151.0,0.00013298,2]
[380049725,1755504643726,-151.0,0.00013298,2]
[380049726,1755504643736,-697.610665,0.00013298,2]